bitfinex-derivatives/quotes_BNBF0:USTF0_20250715
["timestamp","ask_amount","ask_price","bid_price","bid_amount"]
[1752578661845,1.3176753,678.44,677.14,1.3219126]
[1752578662050,1.3176753,678.44,677.05,0.2568806]
[1752578662051,0.98553497,678.26,677.31,0.98860459]
[1752578662749,0.98553497,678.27,677.3,0.98860459]
[1752578663449,0.98553497,678.32,677.34,0.98860459]
[1752578663746,0.98553497,678.35,677.36,0.98860459]
[1752578664148,0.98553497,678.36,677.36,0.98860459]
[1752578664345,0.98553497,678.37,677.35,0.98860459]
[1752578664944,0.98553497,678.41,677.4,0.98860459]
[1752578665249,0.98553497,678.42,677.38,0.98860459]
[1752578665546,0.98553497,678.46,677.41,0.98860459]
[1752578666247,0.25665326,678.55,677.39,0.98860459]
[1752578666248,0.98553497,678.47,677.39,0.98860459]
[1752578666450,0.98553497,678.46,677.4,0.98860459]
[1752578667348,0.98553497,678.46,677.39,0.98860459]
[1752578668251,0.98553497,678.47,677.38,0.98860459]
[1752578668553,0.98553497,678.47,677.39,0.98860459]
[1752578668748,0.98553497,678.48,677.38,0.98860459]
[1752578669147,0.98553497,678.48,677.37,0.98860459]
[1752578669346,0.98553497,678.49,677.37,0.98860459]
[1752578670152,0.98553497,678.5,677.36,0.98860459]
[1752578671147,0.98553497,678.5,677.35,0.98860459]
[1752578671548,0.98553497,678.48,677.36,0.98860459]
[1752578671748,0.98553497,678.5,677.35,0.98860459]
[1752578672248,0.98553497,678.51,677.34,0.98860459]
[1752578672449,0.98553497,678.51,677.35,0.98860459]
[1752578672648,0.98553497,678.5,677.35,0.98860459]
[1752578673047,0.98553497,678.51,677.33,0.98860459]
[1752578673248,0.25665326,678.55,677.26,0.98860459]
[1752578674152,0.98553497,678.51,677.16,0.98860459]
[1752578675355,0.98553497,678.5,677.16,0.98860459]
[1752578677856,0.98553497,678.51,677.16,0.98860459]
[1752578682462,0.98553497,678.5,677.16,0.98860459]
[1752578683063,0.98553497,678.44,677.2,0.98860459]
[1752578683264,0.98553497,678.44,677.21,0.98860459]
[1752578683467,0.98553497,678.44,677.2,0.98860459]
[1752578683863,0.98553497,678.43,677.21,0.98860459]
[1752578684364,0.98553497,678.34,677.27,0.98860459]
[1752578685169,0.98553497,678.33,677.27,0.98860459]
[1752578685468,0.98553497,678.34,677.27,0.98860459]
[1752578685766,0.98553497,678.29,677.22,0.98860459]
[1752578685965,0.98553497,678.3,677.21,0.98860459]
[1752578686166,0.98553497,678.29,677.2,0.98860459]
[1752578686367,0.98553497,678.26,677.17,0.98860459]
[1752578687570,0.98553497,678.26,677.18,0.98860459]
[1752578688270,0.98553497,678.22,677.14,0.98860459]
[1752578688470,0.98553497,678.19,677.13,0.98860459]
[1752578689571,0.98553497,678.18,677.14,0.98860459]
[1752578690071,0.98387072,678.18,677.14,0.9871126]
[1752578690371,0.98387072,678.18,677.15,0.9871126]
[1752578691169,0.98387072,678.17,677.15,0.9871126]
[1752578691372,0.98387072,678.17,677.16,0.9871126]
[1752578692470,0.98387072,678.16,677.17,0.9871126]
[1752578693071,0.98387072,678.19,677.16,0.9871126]
[1752578693374,0.98387072,678.18,677.16,0.9871126]
[1752578693573,0.98387072,678.18,677.17,0.9871126]
[1752578694480,0.98387072,678.17,677.18,0.9871126]
[1752578695376,0.98387072,678.16,677.2,0.9871126]
[1752578696476,0.98387072,678.15,677.21,0.9871126]
[1752578697179,0.98605855,678.15,677.21,0.98902028]
[1752578697377,0.98605855,678.14,677.22,0.98902028]
[1752578698478,0.98605855,678.14,677.23,0.98902028]
[1752578698881,0.98605855,678.13,677.23,0.98902028]
[1752578699483,0.98605855,678.13,677.24,0.98902028]
[1752578701183,0.98605855,678.12,677.25,0.98902028]
[1752578701383,0.98605855,678.11,677.27,0.98902028]
[1752578702383,0.98605855,678.13,677.26,0.98902028]
[1752578702779,0.98605855,678.1,677.28,0.98902028]
[1752578702984,0.98605855,678.11,677.27,0.98902028]
[1752578703184,0.98605855,678.1,677.28,0.98902028]
[1752578703480,0.98605855,678.11,677.27,0.98902028]
[1752578704186,0.98605855,678.13,677.26,0.98902028]
[1752578704386,0.98605855,678.12,677.26,0.98902028]
[1752578704984,0.98605855,678.1,677.24,0.98902028]
[1752578705182,0.98605855,678.09,677.23,0.98902028]
[1752578705380,0.98605855,678.02,677.16,0.98902028]
[1752578710188,0.98605855,678.02,677.17,0.98902028]
[1752578710390,0.98605855,678.03,677.16,0.98902028]
[1752578711086,0.98605855,678.09,677.25,0.98902028]
[1752578711289,0.98605855,678.09,677.26,0.98902028]
[1752578711485,0.98605855,678.12,677.24,0.98902028]
[1752578712092,0.98605855,678.11,677.25,0.98902028]
[1752578712988,0.98605855,678.13,677.25,0.98902028]
[1752578713190,0.98605855,678.13,677.23,0.98902028]
[1752578713795,0.98605855,678.13,677.24,0.98902028]
[1752578714891,0.98605855,678.13,677.26,0.98902028]
[1752578715095,0.98605855,678.12,677.26,0.98902028]
[1752578715298,0.98605855,678.12,677.27,0.98902028]
[1752578716594,0.98605855,678.12,677.28,0.98902028]
[1752578717296,0.98605855,678.13,677.29,0.98902028]
[1752578717898,0.98605855,678.14,677.28,0.98902028]
[1752578719798,0.98605855,678.14,677.05,0.2568806]
[1752578719799,0.98605855,678.14,677.3,0.98902028]
[1752578720298,0.98605855,678.1,677.32,0.98902028]
[1752578722300,0.98605855,678.11,677.32,0.98902028]
[1752578723100,0.98605855,678.08,677.32,0.98902028]
[1752578723301,0.98605855,678.05,677.3,0.98902028]
[1752578725202,0.98605855,678.04,677.3,0.98902028]
[1752578726103,0.98605855,678.04,677.31,0.98902028]
[1752578728403,0.98605855,678.03,677.32,0.98902028]
[1752578728800,0.98605855,678.04,677.32,0.98902028]
[1752578729199,0.98605855,678.03,677.33,0.98902028]
[1752578730402,0.98605855,678.02,677.34,0.98902028]
[1752578730906,0.98605855,678.03,677.34,0.98902028]
[1752578731105,0.98605855,678.02,677.35,0.98902028]
[1752578731903,0.98605855,678.02,677.34,0.98902028]
[1752578732106,0.98605855,678.01,677.36,0.98902028]
[1752578732908,3.3050422,678.82,677.33,0.98902028]
[1752578732909,0.98605855,678.05,677.33,0.98902028]
[1752578733108,0.98605855,678.04,677.34,0.98902028]
[1752578735110,0.98605855,678.03,677.35,0.98902028]
[1752578736608,0.98605855,678.04,677.35,0.98902028]
[1752578737111,0.98605855,678.02,677.33,0.98902028]
[1752578737306,0.98605855,678.02,677.34,0.98902028]
[1752578737908,0.98605855,678.01,677.34,0.98902028]
[1752578738109,1.3176753,678.17,676.38,3.2860936]
[1752578738110,0.98605855,677.99,677.32,0.98902028]
[1752578738310,0.98605855,677.96,677.29,0.98902028]
[1752578738510,0.98605855,677.94,677.27,0.98902028]
[1752578739411,0.98605855,677.93,677.27,0.98902028]
[1752578739807,0.98605855,677.94,677.27,0.98902028]
[1752578740211,0.98605855,677.93,677.28,0.98902028]
[1752578740711,0.98605855,677.9,677.3,0.98902028]
[1752578741514,0.98605855,677.89,677.3,0.98902028]
[1752578742209,0.98605855,677.89,677.31,0.98902028]
[1752578742813,0.98605855,677.88,677.31,0.98902028]
[1752578743316,0.98605855,677.88,677.32,0.98902028]
[1752578744118,0.98605855,677.87,677.33,0.98902028]
[1752578744718,0.98605855,677.87,677.32,0.98902028]
[1752578744918,0.98605855,677.87,677.33,0.98902028]
[1752578745113,0.98605855,677.86,677.33,0.98902028]
[1752578745619,0.98605855,677.86,677.34,0.98902028]
[1752578746118,0.98605855,677.85,677.34,0.98902028]
[1752578746519,0.98605855,677.86,677.33,0.98902028]
[1752578747218,0.98605855,677.86,677.34,0.98902028]
[1752578747918,0.98605855,677.85,677.34,0.98902028]
[1752578749815,0.98605855,677.86,677.33,0.98902028]
[1752578752221,0.98605855,677.85,677.33,0.98902028]
[1752578752723,0.98605855,677.85,676.53,3.2860936]
[1752578752724,0.98605855,677.88,677.31,0.98902028]
[1752578753123,0.98605855,677.89,677.31,0.98902028]
[1752578753423,0.98605855,677.89,677.3,0.98902028]
[1752578754720,0.98605855,677.84,677.25,0.98902028]
[1752578755026,0.98605855,677.69,677.09,0.98902028]
[1752578755224,3.3050422,678.59,677.08,0.98902028]
[1752578755225,0.98605855,677.7,677.08,0.98902028]
[1752578755521,0.98605855,677.71,677.07,0.98902028]
[1752578756222,0.98605855,677.72,677.06,0.98902028]
[1752578756927,0.98605855,677.71,677.06,0.98902028]
[1752578757226,0.98605855,677.73,677.05,0.98902028]
[1752578757824,0.98605855,677.72,677.05,0.98902028]
[1752578758123,0.98605855,677.72,675.86,4.6005311]
[1752578758124,0.98605855,677.73,677.04,0.98902028]
[1752578758626,0.98605855,677.72,677.04,0.98902028]
[1752578759128,0.98605855,677.72,676.17,3.2860936]
[1752578759129,0.98605855,677.73,677.03,0.98902028]
[1752578759529,0.98605855,677.85,677.14,0.98902028]
[1752578760329,0.98605855,677.89,677.18,0.98902028]
[1752578760530,0.98605855,677.88,677.17,0.98902028]
[1752578760726,0.98605855,677.88,676.25,3.2860936]
[1752578760727,0.98605855,677.84,677.14,0.98902028]
[1752578760930,0.98605855,677.83,677.13,0.98902028]
[1752578761831,0.98605855,677.82,677.12,0.98902028]
[1752578762028,0.98605855,677.75,677.05,0.98902028]
[1752578762328,0.98605855,677.76,677.04,0.98902028]
[1752578762631,0.98605855,677.8,677.08,0.98902028]
[1752578762928,0.98605855,677.77,677.04,0.98902028]
[1752578763529,0.98605855,677.78,677.03,0.98902028]
[1752578763732,0.98605855,677.77,677.03,0.98902028]
[1752578764333,0.98605855,677.78,677.03,0.98902028]
[1752578764832,0.98605855,677.78,676.73,1.9716561]
[1752578764833,0.98605855,677.81,677.06,0.98902028]
[1752578765128,0.98605855,677.88,677.13,0.98902028]
[1752578765332,0.98605855,677.87,677.13,0.98902028]
[1752578765729,0.98605855,677.86,677.13,0.98902028]
[1752578765930,0.98605855,677.86,677.14,0.98902028]
[1752578766229,0.98605855,677.86,677.13,0.98902028]
[1752578767831,0.98605855,677.87,677.13,0.98902028]
[1752578768030,0.98605855,677.95,677.07,0.98902028]
[1752578768330,0.98605855,677.94,677.04,0.98902028]
[1752578768532,0.98605855,677.92,677.03,0.98902028]
[1752578768736,0.98605855,677.91,677.02,0.98902028]
[1752578768936,0.98605855,677.88,676.99,0.98902028]
[1752578770336,0.98605855,677.88,676.98,0.98902028]
[1752578770538,0.98605855,677.89,676.98,0.98902028]
[1752578770735,0.98605855,677.9,676.97,0.98902028]
[1752578771439,0.98605855,677.91,676.97,0.98902028]
[1752578771635,0.98605855,677.88,676.94,0.98902028]
[1752578772236,0.98605855,677.88,676.93,0.98902028]
[1752578774040,0.98605855,677.82,676.97,0.98902028]
[1752578775044,0.98605855,677.84,676.95,0.98902028]
[1752578775842,0.98605855,677.83,676.96,0.98902028]
[1752578776240,0.98605855,677.83,676.95,0.98902028]
[1752578778140,0.98605855,677.83,675.54,4.6005311]
[1752578778141,0.98605855,677.85,676.94,0.98902028]
[1752578780242,0.98605855,677.84,676.95,0.98902028]
[1752578780646,0.98605855,677.83,676.95,0.98902028]
[1752578781145,0.98605855,677.83,676.96,0.98902028]
[1752578781344,0.98605855,677.84,676.95,0.98902028]
[1752578782043,0.98605855,677.83,676.95,0.98902028]
[1752578782647,0.98605855,677.79,676.9,0.98902028]
[1752578782944,0.98605855,677.78,676.91,0.98902028]
[1752578783342,0.98605855,677.78,676.9,0.98902028]
[1752578784848,0.98605855,677.77,676.91,0.98902028]
[1752578785348,0.98605855,677.76,676.91,0.98902028]
[1752578787048,0.98605855,677.76,676.92,0.98902028]
[1752578787545,0.98605855,677.8,676.96,0.98902028]
[1752578789048,0.98605855,677.8,676.97,0.98902028]
[1752578790047,0.98605855,677.79,676.97,0.98902028]
[1752578791153,0.98605855,677.79,676.98,0.98902028]
[1752578791452,0.98605855,677.77,676.99,0.98902028]
[1752578793256,0.98605855,677.77,677.0,0.98902028]
[1752578795058,0.98605855,677.76,677.0,0.98902028]
[1752578795258,0.98605855,677.76,677.01,0.98902028]
[1752578796258,0.98605855,677.75,677.02,0.98902028]
[1752578796855,0.98605855,677.72,677.04,0.98902028]
[1752578797156,0.98605855,677.72,676.92,1.3219126]
[1752578797157,0.98605855,677.72,677.05,0.98902028]
[1752578797358,0.98605855,677.71,677.05,0.98902028]
[1752578797859,0.98605855,677.74,677.03,0.98902028]
[1752578798158,0.98605855,677.74,677.04,0.98902028]
[1752578799062,0.98605855,677.73,677.04,0.98902028]
[1752578799358,0.98605855,677.73,677.05,0.98902028]
[1752578799561,0.98605855,677.73,677.04,0.98902028]
[1752578800057,0.98605855,677.73,677.05,0.98902028]
[1752578801865,0.98605855,677.72,677.05,0.98902028]
[1752578802162,0.98605855,677.72,677.06,0.98902028]
[1752578803265,0.98605855,677.71,677.06,0.98902028]
[1752578803868,0.98605855,677.72,677.06,0.98902028]
[1752578804467,0.98605855,677.71,677.07,0.98902028]
[1752578804976,0.98605855,677.75,677.04,0.98902028]
[1752578805271,0.98605855,677.74,677.05,0.98902028]
[1752578807273,0.98605855,677.73,677.06,0.98902028]
[1752578808075,0.98605855,677.74,677.05,0.98902028]
[1752578809073,0.98605855,677.73,677.06,0.98902028]
[1752578809679,0.98605855,677.74,677.05,0.98902028]
[1752578811379,0.98605855,677.74,676.88,1.3219126]
[1752578811380,0.98605855,677.71,677.04,0.98902028]
[1752578811580,0.98605855,677.72,677.03,0.98902028]
[1752578812280,0.98605855,677.71,677.04,0.98902028]
[1752578812980,0.98605855,677.71,675.97,3.2860936]
[1752578812981,0.98605855,677.68,677.01,0.98902028]
[1752578813276,0.98605855,677.67,677.02,0.98902028]
[1752578814082,0.98605855,677.66,677.03,0.98902028]
[1752578814779,0.98605855,677.65,677.04,0.98902028]
[1752578816880,0.98605855,677.64,677.06,0.98902028]
[1752578817178,0.98605855,677.64,677.05,0.98902028]
[1752578817682,0.98605855,677.63,677.06,0.98902028]
[1752578817883,0.98605855,677.64,677.05,0.98902028]
[1752578818082,0.98605855,677.64,676.89,1.3219126]
[1752578818083,0.98605855,677.63,677.06,0.98902028]
[1752578819881,0.98988014,677.63,677.06,0.99487037]
[1752578820986,0.98988014,677.68,677.11,0.99487037]
[1752578821681,0.98988014,677.72,677.13,0.99487037]
[1752578825292,0.98988014,677.71,677.14,0.99487037]
[1752578827485,0.98988014,677.7,677.15,0.99487037]
[1752578827787,0.98988014,677.68,677.16,0.99487037]
[1752578829489,0.98988014,677.68,677.17,0.99487037]
[1752578829689,0.98988014,677.69,677.15,0.99487037]
[1752578831486,0.98988014,677.67,677.17,0.99487037]
[1752578832691,0.98988014,677.66,677.17,0.99487037]
[1752578833086,0.98988014,677.67,677.17,0.99487037]
[1752578834890,0.98988014,677.7,677.15,0.99487037]
[1752578835493,1.3176753,677.85,676.99,1.3219126]
[1752578835689,4.6270591,678.96,675.88,4.6005311]
[1752578838697,0.99054762,677.68,677.12,0.99534129]
[1752578840899,0.99054762,677.65,677.07,0.99534129]
[1752578844800,0.99054762,677.64,677.08,0.99534129]
[1752578845004,0.99054762,677.63,677.08,0.99534129]
[1752578847601,0.99054762,677.63,677.09,0.99534129]
[1752578847807,0.99054762,677.62,677.1,0.99534129]
[1752578848303,0.99054762,677.62,677.09,0.99534129]
[1752578849008,0.99054762,677.62,677.1,0.99534129]
[1752578849505,0.99054762,677.63,677.09,0.99534129]
[1752578850403,0.99054762,677.62,677.09,0.99534129]
[1752578850808,0.99054762,677.61,677.1,0.99534129]
[1752578851504,0.99054762,677.62,677.1,0.99534129]
[1752578851711,0.99054762,677.66,677.07,0.99534129]
[1752578852909,0.99054762,677.67,677.06,0.99534129]
[1752578853204,0.99054762,677.68,677.06,0.99534129]
[1752578853408,1.3207301,677.86,677.06,0.99534129]
[1752578853409,0.99054762,677.67,677.06,0.99534129]
[1752578857712,0.99054762,677.68,677.06,0.99534129]
[1752578858809,0.99054762,677.68,677.05,0.99534129]
[1752578859912,0.99054762,677.69,677.05,0.99534129]
[1752578860211,0.99054762,677.69,677.04,0.99534129]
[1752578861612,0.99054762,677.67,677.05,0.99534129]
[1752578861808,0.99054762,677.67,677.06,0.99534129]
[1752578862909,0.99054762,677.66,677.06,0.99534129]
[1752578863810,0.99054762,677.65,677.07,0.99534129]
[1752578867315,0.99054762,677.67,677.06,0.99534129]
[1752578868716,4.6225555,679.06,677.06,0.99534129]
[1752578868717,0.99054762,677.66,677.06,0.99534129]
[1752578869216,0.99054762,677.66,677.07,0.99534129]
[1752578869416,0.99054762,677.66,677.06,0.99534129]
[1752578869617,0.99054762,677.66,677.07,0.99534129]
[1752578869816,0.99054762,677.64,677.07,0.99534129]
[1752578871919,0.99054762,677.65,677.07,0.99534129]
[1752578872814,0.99054762,677.67,677.09,0.99534129]
[1752578873019,0.99054762,677.68,677.1,0.99534129]
[1752578873620,3.3018254,678.66,677.09,0.99534129]
[1752578873621,0.99054762,677.69,677.09,0.99534129]
[1752578874115,0.99054762,677.7,677.09,0.99534129]
[1752578874318,0.99054762,677.7,677.1,0.99534129]
[1752578874922,0.99054762,677.7,677.09,0.99534129]
[1752578875218,0.99054762,677.7,677.1,0.99534129]
[1752578876522,0.99054762,677.71,677.09,0.99534129]
[1752578877326,0.99054762,677.7,677.1,0.99534129]
[1752578879223,0.99054762,677.69,677.1,0.99534129]
[1752578880223,0.99054762,677.67,677.11,0.99534129]
[1752578881423,0.99054762,677.68,677.11,0.99534129]
[1752578881727,0.99054762,677.68,677.12,0.99534129]
[1752578882526,0.99054762,677.68,675.84,4.644926]
[1752578882527,0.99054762,677.66,677.13,0.99534129]
[1752578883127,0.99054762,677.68,677.12,0.99534129]
[1752578883524,0.99054762,677.7,677.14,0.99534129]
[1752578884630,0.99054762,677.71,677.14,0.99534129]
[1752578885032,0.99054762,677.72,677.13,0.99534129]
[1752578888634,1.3207301,677.89,676.96,1.3271217]
[1752578888937,0.98943331,677.72,677.13,0.99529228]
[1752578891239,0.98943331,677.71,677.14,0.99529228]
[1752578891437,0.98943331,677.7,677.14,0.99529228]
[1752578891638,0.98943331,677.71,677.14,0.99529228]
[1752578892037,0.98943331,677.7,677.14,0.99529228]
[1752578892838,0.98943331,677.69,677.15,0.99529228]
[1752578893535,0.98943331,677.72,677.13,0.99529228]
[1752578893737,0.98943331,677.78,677.22,0.99529228]
[1752578894236,0.98943331,677.78,677.21,0.99529228]
[1752578894541,0.98943331,677.79,677.21,0.99529228]
[1752578895135,0.98943331,677.8,677.2,0.99529228]
[1752578896136,0.98943331,677.81,677.19,0.99529228]
[1752578896435,0.98943331,677.81,677.2,0.99529228]
[1752578896639,0.98943331,677.81,677.19,0.99529228]
[1752578897040,0.98943331,677.83,677.18,0.99529228]
[1752578897337,0.98943331,677.84,677.18,0.99529228]
[1752578897636,0.98943331,677.85,677.18,0.99529228]
[1752578898241,0.98943331,677.86,677.17,0.99529228]
[1752578898941,0.98943331,677.86,677.18,0.99529228]
[1752578899238,0.98943331,677.87,677.17,0.99529228]
[1752578899442,0.98943331,677.84,677.19,0.99529228]
[1752578900142,0.98943331,677.85,677.18,0.99529228]
[1752578900843,0.98943331,677.88,677.22,0.99529228]
[1752578901044,0.98943331,677.89,677.22,0.99529228]
[1752578901241,0.98943331,677.89,677.19,0.99529228]
[1752578901440,0.98943331,677.92,677.19,0.99529228]
[1752578903240,0.98943331,677.93,677.19,0.99529228]
[1752578904047,0.98943331,678.02,677.13,0.99529228]
[1752578904346,0.98943331,678.01,677.13,0.99529228]
[1752578904546,0.98943331,678.0,677.12,0.99529228]
[1752578905144,0.98943331,678.01,677.12,0.99529228]
[1752578905447,0.98943331,677.87,676.98,0.99529228]
[1752578911249,0.98943331,677.87,676.99,0.99529228]
[1752578911449,3.3018254,679.32,676.99,0.99529228]
[1752578911450,0.98943331,677.86,676.99,0.99529228]
[1752578913249,0.98943331,677.85,677.0,0.99529228]
[1752578913650,0.98943331,677.83,677.01,0.99529228]
[1752578914050,0.98943331,677.74,677.07,0.99529228]
[1752578915052,0.98943331,677.73,677.08,0.99529228]
[1752578915548,0.98943331,677.7,677.09,0.99529228]
[1752578916747,0.98943331,677.71,677.1,0.99529228]
[1752578918352,0.98943331,677.7,677.1,0.99529228]
[1752578919651,0.98943331,677.69,677.11,0.99529228]
[1752578922753,0.98943331,677.67,677.13,0.99529228]
[1752578923157,0.98943331,677.66,677.13,0.99529228]
[1752578923757,0.98943331,677.69,677.16,0.99529228]
[1752578926254,0.98943331,677.68,677.16,0.99529228]
[1752578926658,0.98943331,677.68,677.17,0.99529228]
[1752578929357,0.98943331,677.69,677.16,0.99529228]
[1752578929761,0.98943331,677.7,677.16,0.99529228]
[1752578930158,0.98943331,677.69,677.16,0.99529228]
[1752578931962,0.98943331,677.7,677.17,0.99529228]
[1752578933757,0.98943331,677.71,677.16,0.99529228]
[1752578936459,0.98943331,677.71,677.17,0.99529228]
[1752578936859,0.98943331,677.78,677.24,0.99529228]
[1752578937058,0.98943331,677.79,677.25,0.99529228]
[1752578937960,0.98943331,677.82,677.23,0.99529228]
[1752578938263,0.98943331,677.82,677.22,0.99529228]
[1752578940661,0.98943331,677.82,677.21,0.99529228]
[1752578940865,0.98943331,677.8,677.19,0.99529228]
[1752578941066,0.98943331,677.8,677.18,0.99529228]
[1752578941267,0.98943331,677.78,677.2,0.99529228]
[1752578941765,0.98943331,677.76,677.18,0.99529228]
[1752578942265,0.98943331,677.77,677.17,0.99529228]
[1752578942468,0.98943331,677.75,677.16,0.99529228]
[1752578942665,0.98943331,677.77,677.14,0.99529228]
[1752578943269,0.98943331,677.77,677.15,0.99529228]
[1752578946373,0.98943331,677.76,677.15,0.99529228]
[1752578948975,0.98943331,677.77,677.15,0.99529228]
[1752578949577,0.98943331,677.82,677.12,0.99529228]
[1752578949774,0.98943331,677.8,677.09,0.99529228]
[1752578949979,0.98943331,677.79,677.09,0.99529228]
[1752578950175,0.25683415,677.94,677.06,0.25684552]
[1752578950477,0.98816981,677.79,677.1,0.99440961]
[1752578951373,0.98816981,677.82,677.07,0.99440961]
[1752578956581,0.98816981,677.85,677.06,0.25684552]
[1752578958293,0.98816981,677.85,677.06,1.25125513]
[1752578959490,0.98816981,677.83,677.07,0.99440961]
[1752578960992,0.98816981,677.8,677.09,0.99440961]
[1752578962091,0.98816981,677.79,677.1,0.99440961]
[1752578964492,0.98816981,677.78,677.1,0.99440961]
[1752578965191,0.98816981,677.78,677.11,0.99440961]
[1752578966196,0.98816981,677.77,677.12,0.99440961]
[1752578966492,0.98816981,677.78,677.11,0.99440961]
[1752578968196,0.98816981,677.81,677.09,0.99440961]
[1752578969894,0.98816981,677.83,677.08,0.99440961]
[1752578970392,0.98816981,677.82,677.07,0.99440961]
[1752578970894,0.98816981,677.83,677.06,1.25125513]
[1752578971197,0.98816981,677.83,677.07,0.99440961]
[1752578971392,0.98816981,677.81,677.06,0.25684552]
[1752578971800,0.98816981,677.77,677.06,0.25684552]
[1752578973198,0.25683415,677.94,677.06,0.25684552]
[1752578973199,0.98816981,677.78,677.06,0.25684552]
[1752578973400,0.98816981,677.74,677.06,0.25684552]
[1752578974199,0.98816981,677.71,677.06,0.25684552]
[1752578975002,0.98816981,677.68,677.06,0.25684552]
[1752578975699,0.98816981,677.65,677.06,0.25684552]
[1752578976203,0.98816981,677.66,677.06,0.25684552]
[1752578977103,0.98816981,677.65,677.06,0.25684552]
[1752578977402,0.98816981,677.66,677.06,0.25684552]
[1752578977702,0.98816981,677.65,677.06,0.25684552]
[1752578978099,0.98816981,677.66,677.06,0.25684552]
[1752578979199,0.98816981,677.67,677.06,0.25684552]
[1752578979404,0.98816981,677.66,677.06,0.25684552]
[1752578981203,0.98816981,677.68,677.06,0.25684552]
[1752578983405,0.98816981,677.67,677.06,0.25684552]
[1752578983606,0.98816981,677.66,677.06,0.25684552]
[1752578988111,0.98816981,677.65,677.06,0.25684552]
[1752578990309,0.98816981,677.65,677.02,0.99440961]
[1752578991209,0.98816981,677.61,677.05,0.99440961]
[1752578991410,0.98816981,677.59,677.03,0.99440961]
[1752578993912,0.98816981,677.58,677.03,0.99440961]
[1752578994214,0.98816981,677.59,677.03,0.99440961]
[1752578995212,0.98816981,677.58,677.02,0.99440961]
[1752578995712,0.98816981,677.6,677.01,0.99440961]
[1752578995912,0.98816981,677.59,677.01,0.99440961]
[1752578996114,0.98816981,677.6,677.01,0.99440961]
[1752578996616,0.98816981,677.59,677.01,0.99440961]
[1752578997409,0.98816981,677.58,677.02,0.99440961]
[1752578997613,0.98816981,677.56,677.0,0.99440961]
[1752578998310,0.98816981,677.55,677.0,0.99440961]
[1752578998612,0.98816981,677.56,677.0,0.99440961]
[1752578999312,0.98816981,677.55,677.0,0.99440961]
[1752579000313,0.98816981,677.56,677.0,0.99440961]
[1752579000511,0.98816981,677.56,676.99,0.99440961]
[1752579000714,0.98816981,677.57,677.0,0.99440961]
[1752579000915,0.98816981,677.59,676.98,1.25129874]
[1752579001116,0.98816981,677.6,676.98,0.25688913]
[1752579001414,0.98816981,677.61,676.98,0.25688913]
[1752579001916,0.98816981,677.58,676.98,0.25688913]
[1752579003119,0.98816981,677.6,676.98,0.25688913]
[1752579003815,0.98816981,677.61,676.98,0.25688913]
[1752579005419,0.98816981,677.62,676.98,0.25688913]
[1752579006220,0.98816981,677.64,676.98,0.25688913]
[1752579006520,0.98816981,677.62,676.98,0.25688913]
[1752579006719,0.98816981,677.63,676.98,0.25688913]
[1752579007722,0.98816981,677.64,676.98,0.25688913]
[1752579008117,0.98816981,677.65,676.98,0.25688913]
[1752579010823,0.98816981,677.66,676.98,0.25688913]
[1752579012925,0.98816981,677.65,676.98,1.25129874]
[1752579013625,0.98816981,677.64,676.98,1.25129874]
[1752579013824,0.98816981,677.63,676.98,1.25129874]
[1752579014322,0.98816981,677.63,676.99,0.99440961]
[1752579016422,0.98816981,677.62,676.99,0.99440961]
[1752579016623,0.98816981,677.61,677.0,0.99440961]
[1752579016822,0.98816981,677.62,677.02,0.99440961]
[1752579017928,0.98816981,677.61,677.03,0.99440961]
[1752579019030,0.98816981,677.62,677.02,0.99440961]
[1752579019431,0.98816981,677.61,677.03,0.99440961]
[1752579020233,0.98816981,677.6,677.03,0.99440961]
[1752579020433,0.98816981,677.61,677.03,0.99440961]
[1752579020634,0.98816981,677.65,677.08,0.99440961]
[1752579021331,0.98816981,677.66,677.09,0.99440961]
[1752579021631,0.98816981,677.68,677.1,0.99440961]
[1752579022133,0.98816981,677.67,677.11,0.99440961]
[1752579026233,0.98816981,677.67,677.12,0.99440961]
[1752579026437,0.98816981,677.66,677.12,0.99440961]
[1752579026938,0.98816981,677.67,677.12,0.99440961]
[1752579027435,0.98816981,677.66,677.12,0.99440961]
[1752579027637,0.98816981,677.65,677.13,0.99440961]
[1752579027933,0.98816981,677.68,677.15,0.99440961]
[1752579028136,0.25683415,677.94,677.16,0.99440961]
[1752579028137,0.98816981,677.67,677.16,0.99440961]
[1752579028338,0.98816981,677.67,677.15,0.99440961]
[1752579028638,0.98816981,677.66,677.16,0.99440961]
[1752579028838,0.98816981,677.67,677.15,0.99440961]
[1752579029140,0.98816981,677.66,677.17,0.99440961]
[1752579029341,0.98816981,677.68,677.18,0.99440961]
[1752579029535,0.98816981,677.68,677.17,0.99440961]
[1752579030540,0.98816981,677.7,677.18,0.99440961]
[1752579030837,0.98816981,677.7,677.19,0.99440961]
[1752579031242,0.98816981,677.7,677.18,0.99440961]
[1752579032436,0.98816981,677.71,677.18,0.99440961]
[1752579032938,0.98816981,677.73,677.19,0.99440961]
[1752579033240,0.98816981,677.75,677.19,0.99440961]
[1752579033440,0.98816981,677.77,677.17,0.99440961]
[1752579033638,0.98816981,677.78,677.17,0.99440961]
[1752579033841,0.98816981,677.78,676.98,0.25688913]
[1752579033842,0.98816981,677.77,677.18,0.99440961]
[1752579034343,0.98816981,677.79,677.17,0.99440961]
[1752579034639,0.98816981,677.82,677.2,0.99440961]